[Event "*** Titled Tuesday Blitz"]
[Site "Chess.com"]
[Date "2020.04.14"]
[Round "1"]
[White "Barbus89"]
[Black "stanyga"]
[Result "0-1"]
[WhiteElo "2323"]
[BlackElo "2667"]
[TimeControl "180+1"]
[EndTime "10:08:17 PDT"]
[Termination "stanyga won on time"]

1. d4 {[%clk 0:03:00.3]} 1... Nf6 {[%clk 0:02:59.9]} 2. Nf3 {[%clk 0:03:00.4]}
2... g6 {[%clk 0:02:59.4]} 3. g3 {[%clk 0:03:00.5]} 3... Bg7 {[%clk 0:02:59.5]}
4. Bg2 {[%clk 0:03:01.4]} 4... d5 {[%clk 0:02:59.7]} 5. O-O {[%clk 0:03:02.3]}
5... O-O {[%clk 0:02:59.9]} 6. c4 {[%clk 0:03:02.8]} 6... dxc4 {[%clk
0:03:00.3]} 7. Na3 {[%clk 0:03:03.4]} 7... c3 {[%clk 0:03:00.8]} 8. bxc3 {[%clk
0:03:04.3]} 8... c5 {[%clk 0:03:01.2]} 9. e3 {[%clk 0:03:04.5]} 9... Nc6 {[%clk
0:02:59.3]} 10. Nc4 {[%clk 0:03:00.3]} 10... Bf5 {[%clk 0:02:46.6]} 11. Nfe5
{[%clk 0:02:37.8]} 11... Be4 {[%clk 0:02:44.5]} 12. Nxc6 {[%clk 0:02:32.9]}
12... Bxc6 {[%clk 0:02:18]} 13. Bxc6 {[%clk 0:02:24.2]} 13... bxc6 {[%clk
0:02:18.9]} 14. Qa4 {[%clk 0:02:10.9]} 14... Ne4 {[%clk 0:02:04.3]} 15. Bb2
{[%clk 0:01:54.6]} 15... cxd4 {[%clk 0:01:25.4]} 16. cxd4 {[%clk 0:01:52.8]}
16... Qd5 {[%clk 0:01:25.9]} 17. f3 {[%clk 0:01:19.8]} 17... Ng5 {[%clk
0:01:24.5]} 18. e4 {[%clk 0:00:55.3]} 18... Bxd4+ {[%clk 0:01:22.8]} 19. Kg2
{[%clk 0:00:55.2]} 19... Qb5 {[%clk 0:01:16.3]} 20. Qxb5 {[%clk 0:00:39.1]}
20... cxb5 {[%clk 0:01:17.2]} 21. Bxd4 {[%clk 0:00:38.2]} 21... bxc4 {[%clk
0:01:17.2]} 22. Bc5 {[%clk 0:00:35.5]} 22... Rfe8 {[%clk 0:00:39.6]} 23. Rac1
{[%clk 0:00:33.3]} 23... Rab8 {[%clk 0:00:38.1]} 24. Rxc4 {[%clk 0:00:33.2]}
24... Rb2+ {[%clk 0:00:37.6]} 25. Rf2 {[%clk 0:00:33.5]} 25... Rxf2+ {[%clk
0:00:36.5]} 26. Kxf2 {[%clk 0:00:34.4]} 26... Rc8 {[%clk 0:00:33.9]} 27. Rc3
{[%clk 0:00:24.3]} 27... f6 {[%clk 0:00:25.1]} 28. Bb4 {[%clk 0:00:24.2]} 28...
Rxc3 {[%clk 0:00:24.4]} 29. Bxc3 {[%clk 0:00:25.1]} 29... Kf7 {[%clk 0:00:24.3]}
30. Ke3 {[%clk 0:00:25.4]} 30... e5 {[%clk 0:00:23.3]} 31. f4 {[%clk 0:00:24.9]}
31... exf4+ {[%clk 0:00:22.8]} 32. gxf4 {[%clk 0:00:25.8]} 32... Ne6 {[%clk
0:00:22.7]} 33. Bb4 {[%clk 0:00:24.8]} 33... Ke8 {[%clk 0:00:22.4]} 34. f5
{[%clk 0:00:22.2]} 34... Ng5 {[%clk 0:00:20.1]} 35. h4 {[%clk 0:00:18.5]} 35...
Nf7 {[%clk 0:00:19.2]} 36. Bc3 {[%clk 0:00:18.7]} 36... Ke7 {[%clk 0:00:17.5]}
37. Kd3 {[%clk 0:00:15]} 37... gxf5 {[%clk 0:00:14.8]} 38. exf5 {[%clk
0:00:14.6]} 38... Nd6 {[%clk 0:00:15.2]} 39. Bb4 {[%clk 0:00:14.2]} 39... Kd7
{[%clk 0:00:15.7]} 40. Bxd6 {[%clk 0:00:12.9]} 40... Kxd6 {[%clk 0:00:16.6]} 41.
Kd4 {[%clk 0:00:13]} 41... h5 {[%clk 0:00:16.7]} 42. a4 {[%clk 0:00:11]} 42...
a5 {[%clk 0:00:17.1]} 43. Kc4 {[%clk 0:00:09.5]} 43... Kc6 {[%clk 0:00:17.1]}
44. Kd4 {[%clk 0:00:09.1]} 44... Kd6 {[%clk 0:00:17.3]} 45. Kc4 {[%clk
0:00:09.8]} 45... Ke5 {[%clk 0:00:14.8]} 46. Kb5 {[%clk 0:00:10]} 46... Kxf5
{[%clk 0:00:14.9]} 47. Kxa5 {[%clk 0:00:10.9]} 47... Kg4 {[%clk 0:00:15.2]} 48.
Kb6 {[%clk 0:00:10.1]} 48... f5 {[%clk 0:00:15.7]} 49. a5 {[%clk 0:00:10.8]}
49... f4 {[%clk 0:00:16.1]} 50. a6 {[%clk 0:00:11.5]} 50... f3 {[%clk
0:00:16.8]} 51. a7 {[%clk 0:00:12]} 51... f2 {[%clk 0:00:17.7]} 52. a8=Q {[%clk
0:00:12.2]} 52... f1=Q {[%clk 0:00:16.9]} 53. Qe4+ {[%clk 0:00:07.6]} 53... Qf4
{[%clk 0:00:16.4]} 54. Qg6+ {[%clk 0:00:07.5]} 54... Kxh4 {[%clk 0:00:16]} 55.
Qg1 {[%clk 0:00:03.1]} 55... Qf6+ {[%clk 0:00:13.7]} 56. Kb7 {[%clk 0:00:02.5]}
56... Qf3+ {[%clk 0:00:12.9]} 57. Kc8 {[%clk 0:00:01.3]} 57... Qg3 {[%clk
0:00:12.9]} 0-1

[Event "*** Titled Tuesday Blitz"]
[Site "Chess.com"]
[Date "2020.04.14"]
[Round "1"]
[White "tigra"]
[Black "Witaliss"]
[Result "1-0"]
[WhiteElo "2808"]
[BlackElo "2422"]
[TimeControl "180+1"]
[EndTime "10:08:19 PDT"]
[Termination "tigra won on time"]

1. e4 {[%clk 0:03:00.9]} 1... c6 {[%clk 0:02:57.8]} 2. d4 {[%clk 0:02:59.8]}
2... d5 {[%clk 0:02:57.8]} 3. e5 {[%clk 0:03:00.3]} 3... Bf5 {[%clk 0:02:56.9]}
4. Nf3 {[%clk 0:02:57.9]} 4... e6 {[%clk 0:02:56.6]} 5. c4 {[%clk 0:02:53]} 5...
Ne7 {[%clk 0:02:54.9]} 6. Nc3 {[%clk 0:02:52.2]} 6... Nd7 {[%clk 0:02:54.5]} 7.
a3 {[%clk 0:02:40.6]} 7... dxc4 {[%clk 0:02:53.4]} 8. Bxc4 {[%clk 0:02:39.9]}
8... Nd5 {[%clk 0:02:52.9]} 9. O-O {[%clk 0:02:27.1]} 9... Be7 {[%clk
0:02:51.1]} 10. h3 {[%clk 0:02:22]} 10... O-O {[%clk 0:02:49.2]} 11. Re1 {[%clk
0:02:20.2]} 11... Nxc3 {[%clk 0:02:42.9]} 12. bxc3 {[%clk 0:02:20]} 12... Nb6
{[%clk 0:02:42.6]} 13. Bd3 {[%clk 0:02:18.9]} 13... Bxd3 {[%clk 0:02:40.9]} 14.
Qxd3 {[%clk 0:02:19.8]} 14... c5 {[%clk 0:02:40.8]} 15. Qe4 {[%clk 0:02:12]}
15... cxd4 {[%clk 0:02:29.4]} 16. cxd4 {[%clk 0:02:11.4]} 16... Nd5 {[%clk
0:02:28.6]} 17. Qg4 {[%clk 0:02:10.1]} 17... Kh8 {[%clk 0:02:26.7]} 18. Bg5
{[%clk 0:01:46.7]} 18... Rc8 {[%clk 0:02:24]} 19. Qh5 {[%clk 0:01:38.2]} 19...
Rc6 {[%clk 0:01:48.9]} 20. Rac1 {[%clk 0:01:33.2]} 20... Qe8 {[%clk 0:01:27.1]}
21. Bxe7 {[%clk 0:01:29.7]} 21... Nxe7 {[%clk 0:01:24.9]} 22. Rxc6 {[%clk
0:01:28.3]} 22... Nxc6 {[%clk 0:01:21.2]} 23. Re4 {[%clk 0:01:07.9]} 23... f5
{[%clk 0:01:16.6]} 24. Qxe8 {[%clk 0:01:05.5]} 24... Rxe8 {[%clk 0:01:15.8]} 25.
Re3 {[%clk 0:00:46.1]} 25... Rd8 {[%clk 0:01:12.9]} 26. Ng5 {[%clk 0:00:44.7]}
26... Rxd4 {[%clk 0:01:00.6]} 27. Nxe6 {[%clk 0:00:41.7]} 27... Rd1+ {[%clk
0:00:52.8]} 28. Kh2 {[%clk 0:00:41.4]} 28... Kg8 {[%clk 0:00:52.5]} 29. f4
{[%clk 0:00:35.3]} 29... h6 {[%clk 0:00:46.4]} 30. g4 {[%clk 0:00:34.1]} 30...
g6 {[%clk 0:00:41.4]} 31. gxf5 {[%clk 0:00:32.2]} 31... gxf5 {[%clk 0:00:40.3]}
32. Rg3+ {[%clk 0:00:19.5]} 32... Kf7 {[%clk 0:00:39.9]} 33. Ng7 {[%clk
0:00:19.9]} 33... Ne7 {[%clk 0:00:36.8]} 34. Nh5 {[%clk 0:00:17.6]} 34... Rd2+
{[%clk 0:00:31.1]} 35. Kg1 {[%clk 0:00:17.6]} 35... Ke6 {[%clk 0:00:29.6]} 36.
Rg7 {[%clk 0:00:17.7]} 36... Rd3 {[%clk 0:00:27.4]} 37. Kg2 {[%clk 0:00:17.6]}
37... Rxa3 {[%clk 0:00:25.6]} 38. Rh7 {[%clk 0:00:17.6]} 38... b5 {[%clk
0:00:24]} 39. Rxh6+ {[%clk 0:00:17.7]} 39... Kd5 {[%clk 0:00:24.1]} 40. Rd6+
{[%clk 0:00:17.7]} 40... Ke4 {[%clk 0:00:22.5]} 41. Rd7 {[%clk 0:00:17.9]} 41...
Nc6 {[%clk 0:00:20.2]} 42. e6 {[%clk 0:00:17.6]} 42... b4 {[%clk 0:00:15.4]} 43.
e7 {[%clk 0:00:17.8]} 43... Nxe7 {[%clk 0:00:15.2]} 44. Rxe7+ {[%clk 0:00:18.5]}
44... Kd4 {[%clk 0:00:14.7]} 45. Rd7+ {[%clk 0:00:18.4]} 45... Kc3 {[%clk
0:00:13.3]} 46. Rc7+ {[%clk 0:00:17.4]} 46... Kd4 {[%clk 0:00:12.5]} 47. Rb7
{[%clk 0:00:17.2]} 47... a5 {[%clk 0:00:11.1]} 48. Ng3 {[%clk 0:00:17.6]} 48...
Ke3 {[%clk 0:00:09.8]} 49. Nxf5+ {[%clk 0:00:15.7]} 49... Kxf4 {[%clk
0:00:09.7]} 50. Nd4 {[%clk 0:00:15.2]} 50... Ke4 {[%clk 0:00:08.6]} 51. Ne2
{[%clk 0:00:12.9]} 51... b3 {[%clk 0:00:07.2]} 52. h4 {[%clk 0:00:11.9]} 52...
a4 {[%clk 0:00:06.3]} 53. h5 {[%clk 0:00:11.8]} 53... Ra2 {[%clk 0:00:06.1]} 54.
Kf2 {[%clk 0:00:12.3]} 54... Kd3 {[%clk 0:00:04.7]} 55. Rd7+ {[%clk 0:00:11.8]}
55... Kc4 {[%clk 0:00:04.1]} 56. h6 {[%clk 0:00:12.7]} 56... b2 {[%clk
0:00:03.8]} 57. Rb7 {[%clk 0:00:13]} 57... a3 {[%clk 0:00:02.9]} 58. h7 {[%clk
0:00:13.5]} 58... Ra1 {[%clk 0:00:01.8]} 59. h8=Q {[%clk 0:00:13.2]} 1-0

[Event "*** Titled Tuesday Blitz"]
[Site "Chess.com"]
[Date "2020.04.14"]
[Round "1"]
[White "suyu28"]
[Black "827883"]
[Result "1-0"]
[WhiteElo "2526"]
[BlackElo "2022"]
[TimeControl "180+1"]
[EndTime "10:08:19 PDT"]
[Termination "suyu28 won by checkmate"]

1. d4 {[%clk 0:03:00]} 1... d5 {[%clk 0:02:59.9]} 2. c4 {[%clk 0:02:53.4]} 2...
e6 {[%clk 0:03:00.2]} 3. Nc3 {[%clk 0:02:51.1]} 3... c6 {[%clk 0:03:00.3]} 4. e4
{[%clk 0:02:50.7]} 4... dxe4 {[%clk 0:02:59.9]} 5. Nxe4 {[%clk 0:02:50.5]} 5...
Bb4+ {[%clk 0:03:00.6]} 6. Bd2 {[%clk 0:02:50.6]} 6... Qxd4 {[%clk 0:03:01.2]}
7. Bxb4 {[%clk 0:02:50.8]} 7... Qxe4+ {[%clk 0:03:01.6]} 8. Be2 {[%clk
0:02:51.3]} 8... a5 {[%clk 0:03:02.2]} 9. Bc3 {[%clk 0:02:51]} 9... Ne7 {[%clk
0:02:51.9]} 10. Nf3 {[%clk 0:02:50.7]} 10... O-O {[%clk 0:02:51.7]} 11. O-O
{[%clk 0:02:50]} 11... Nd7 {[%clk 0:02:24.6]} 12. Bd3 {[%clk 0:02:46.5]} 12...
Qg4 {[%clk 0:02:24.5]} 13. h3 {[%clk 0:02:46.4]} 13... Qh5 {[%clk 0:02:24.3]}
14. Qe2 {[%clk 0:02:43]} 14... Ng6 {[%clk 0:02:18.8]} 15. Bc2 {[%clk 0:02:38.5]}
15... b6 {[%clk 0:01:52.4]} 16. Rfe1 {[%clk 0:02:35.1]} 16... Bb7 {[%clk
0:01:51.7]} 17. Rad1 {[%clk 0:02:34.5]} 17... Rad8 {[%clk 0:01:51.6]} 18. Kh2
{[%clk 0:02:26.7]} 18... Qc5 {[%clk 0:01:35.1]} 19. Rd2 {[%clk 0:02:18.4]} 19...
Qe7 {[%clk 0:01:34.4]} 20. Red1 {[%clk 0:02:12.9]} 20... c5 {[%clk 0:01:34.5]}
21. Be4 {[%clk 0:01:58.4]} 21... Bxe4 {[%clk 0:00:58.7]} 22. Qxe4 {[%clk
0:01:59.3]} 22... Nf6 {[%clk 0:00:59.3]} 23. Qc6 {[%clk 0:01:58.8]} 23... Rb8
{[%clk 0:00:44.9]} 24. Ne5 {[%clk 0:01:27.5]} 24... Rfc8 {[%clk 0:00:41.7]} 25.
Qf3 {[%clk 0:01:19]} 25... Nxe5 {[%clk 0:00:26.8]} 26. Bxe5 {[%clk 0:01:18.4]}
26... Ra8 {[%clk 0:00:23.3]} 27. Rd6 {[%clk 0:01:15.4]} 27... Rd8 {[%clk
0:00:09.1]} 28. Qc6 {[%clk 0:00:46.7]} 28... Rac8 {[%clk 0:00:08.6]} 29. Qxb6
{[%clk 0:00:40.8]} 29... Rxd6 {[%clk 0:00:08.8]} 30. Rxd6 {[%clk 0:00:31.6]}
30... Ne4 {[%clk 0:00:08.7]} 31. Rd3 {[%clk 0:00:26.1]} 31... Nxf2 {[%clk
0:00:06.9]} 32. Rf3 {[%clk 0:00:17.2]} 32... Ne4 {[%clk 0:00:06.8]} 33. Qxa5
{[%clk 0:00:17]} 33... f6 {[%clk 0:00:04.3]} 34. Bf4 {[%clk 0:00:16.9]} 34... e5
{[%clk 0:00:03.9]} 35. Be3 {[%clk 0:00:17.3]} 35... Kf7 {[%clk 0:00:02.9]} 36.
Rf1 {[%clk 0:00:16.8]} 36... Nd6 {[%clk 0:00:02.7]} 37. Qc3 {[%clk 0:00:15.9]}
37... Qc7 {[%clk 0:00:02.8]} 38. Kh1 {[%clk 0:00:14.4]} 38... Ne4 {[%clk
0:00:02.9]} 39. Qd3 {[%clk 0:00:14.3]} 39... Qc6 {[%clk 0:00:02.8]} 40. Rd1
{[%clk 0:00:13.5]} 40... Rc7 {[%clk 0:00:03.6]} 41. Bg1 {[%clk 0:00:11]} 41...
Ng3+ {[%clk 0:00:04]} 42. Qxg3 {[%clk 0:00:10.7]} 42... g6 {[%clk 0:00:04.3]}
43. Qd3 {[%clk 0:00:10.5]} 43... Ke6 {[%clk 0:00:04.5]} 44. Qd5+ {[%clk
0:00:10.4]} 44... Qxd5 {[%clk 0:00:05.4]} 45. Rxd5 {[%clk 0:00:10.9]} 45... Rb7
{[%clk 0:00:05.9]} 46. b3 {[%clk 0:00:11.2]} 46... Ra7 {[%clk 0:00:06.3]} 47.
Rd2 {[%clk 0:00:11.3]} 47... Kf5 {[%clk 0:00:06.2]} 48. Bxc5 {[%clk 0:00:10.9]}
48... Rc7 {[%clk 0:00:06.8]} 49. Bg1 {[%clk 0:00:11.2]} 49... Kg5 {[%clk
0:00:07.5]} 50. c5 {[%clk 0:00:11.6]} 50... Kh4 {[%clk 0:00:08.3]} 51. b4 {[%clk
0:00:12]} 51... f5 {[%clk 0:00:09]} 52. b5 {[%clk 0:00:12.4]} 52... g5 {[%clk
0:00:09.7]} 53. c6 {[%clk 0:00:12.9]} 53... Rf7 {[%clk 0:00:10.3]} 54. b6 {[%clk
0:00:12.9]} 54... g4 {[%clk 0:00:10.9]} 55. c7 {[%clk 0:00:13.4]} 55... h5
{[%clk 0:00:10.8]} 56. c8=Q {[%clk 0:00:13.5]} 56... e4 {[%clk 0:00:11.5]} 57.
Qd8+ {[%clk 0:00:13.9]} 57... Kg3 {[%clk 0:00:11.2]} 58. Bh2# {[%clk 0:00:14.5]}
1-0

[Event "*** Titled Tuesday Blitz"]
[Site "Chess.com"]
[Date "2020.04.14"]
[Round "1"]
[White "Onwgs"]
[Black "Elshan1985"]
[Result "1-0"]
[WhiteElo "2393"]
[BlackElo "2691"]
[TimeControl "180+1"]
[EndTime "10:08:21 PDT"]
[Termination "Onwgs won on time"]

1. e4 {[%clk 0:03:00.9]} 1... e6 {[%clk 0:02:59.6]} 2. d4 {[%clk 0:03:00.7]}
2... d5 {[%clk 0:03:00.5]} 3. Nd2 {[%clk 0:03:00.3]} 3... c5 {[%clk 0:02:58.8]}
4. exd5 {[%clk 0:02:59.6]} 4... Qxd5 {[%clk 0:02:59.7]} 5. Ngf3 {[%clk
0:02:59.5]} 5... cxd4 {[%clk 0:03:00.3]} 6. Bc4 {[%clk 0:02:56.2]} 6... Qd8
{[%clk 0:03:00]} 7. O-O {[%clk 0:02:54.4]} 7... Nc6 {[%clk 0:03:00.1]} 8. Nb3
{[%clk 0:02:54.5]} 8... a6 {[%clk 0:03:00.6]} 9. Nbxd4 {[%clk 0:02:54.3]} 9...
Nxd4 {[%clk 0:03:01.5]} 10. Nxd4 {[%clk 0:02:55.1]} 10... Qc7 {[%clk 0:03:01.5]}
11. Bb3 {[%clk 0:02:53]} 11... Bd6 {[%clk 0:03:01.5]} 12. Re1 {[%clk 0:02:49.8]}
12... Ne7 {[%clk 0:03:00.7]} 13. h3 {[%clk 0:02:48.9]} 13... O-O {[%clk
0:02:59.5]} 14. c3 {[%clk 0:02:48.9]} 14... e5 {[%clk 0:02:46.7]} 15. Nf3 {[%clk
0:02:41.2]} 15... Bf5 {[%clk 0:02:44.3]} 16. Be3 {[%clk 0:02:37.2]} 16... Rad8
{[%clk 0:02:37.6]} 17. Qe2 {[%clk 0:02:36.6]} 17... Ng6 {[%clk 0:02:33]} 18.
Rad1 {[%clk 0:02:32.1]} 18... h6 {[%clk 0:02:31.8]} 19. Qc4 {[%clk 0:02:28.9]}
19... Qe7 {[%clk 0:02:19.1]} 20. Bb6 {[%clk 0:02:24.1]} 20... Rc8 {[%clk
0:02:18.8]} 21. Qd5 {[%clk 0:02:21.1]} 21... Bb8 {[%clk 0:02:09.9]} 22. Nd4
{[%clk 0:01:59.7]} 22... Bxh3 {[%clk 0:01:56.5]} 23. gxh3 {[%clk 0:01:57.6]}
23... Nf4 {[%clk 0:01:48.5]} 24. Qf3 {[%clk 0:01:40.9]} 24... Qf6 {[%clk
0:01:40.2]} 25. Ne2 {[%clk 0:01:22]} 25... e4 {[%clk 0:01:18.5]} 26. Qe3 {[%clk
0:01:09.8]} 26... Qg5+ {[%clk 0:01:01.8]} 27. Ng3 {[%clk 0:01:09.1]} 27... Nxh3+
{[%clk 0:01:01.9]} 28. Kf1 {[%clk 0:01:03.7]} 28... Bf4 {[%clk 0:00:54.3]} 29.
Qxe4 {[%clk 0:00:47.5]} 29... Qb5+ {[%clk 0:00:53.2]} 30. Kg2 {[%clk 0:00:44.9]}
30... Qxb6 {[%clk 0:00:50.4]} 31. Kxh3 {[%clk 0:00:45]} 31... Qxf2 {[%clk
0:00:50.2]} 32. Rg1 {[%clk 0:00:40.5]} 32... Bxg3 {[%clk 0:00:22.3]} 33. Rxg3
{[%clk 0:00:39.1]} 33... Rc5 {[%clk 0:00:22.8]} 34. Qg6 {[%clk 0:00:31.9]} 34...
Rg5 {[%clk 0:00:16.2]} 35. Rxg5 {[%clk 0:00:32.1]} 35... hxg5 {[%clk 0:00:16.5]}
36. Qe4 {[%clk 0:00:31.9]} 36... Rc8 {[%clk 0:00:12.2]} 37. Rd7 {[%clk
0:00:29.4]} 37... Rf8 {[%clk 0:00:10.7]} 38. Rd1 {[%clk 0:00:28.7]} 38... Rc8
{[%clk 0:00:08.7]} 39. Bc2 {[%clk 0:00:24.6]} 39... g6 {[%clk 0:00:08.2]} 40.
Bb3 {[%clk 0:00:23.7]} 40... Kg7 {[%clk 0:00:06.9]} 41. Qd4+ {[%clk 0:00:23.9]}
41... Qxd4 {[%clk 0:00:06.1]} 42. cxd4 {[%clk 0:00:24.3]} 42... Rc7 {[%clk
0:00:07]} 43. d5 {[%clk 0:00:24.3]} 43... f5 {[%clk 0:00:06.2]} 44. d6 {[%clk
0:00:24.2]} 44... Rd7 {[%clk 0:00:06.7]} 45. Be6 {[%clk 0:00:24.1]} 45... Rd8
{[%clk 0:00:07.2]} 46. d7 {[%clk 0:00:22.7]} 46... Kf6 {[%clk 0:00:07.6]} 47.
Re1 {[%clk 0:00:21.4]} 47... g4+ {[%clk 0:00:06.3]} 48. Kg3 {[%clk 0:00:20.9]}
48... g5 {[%clk 0:00:05]} 49. Re2 {[%clk 0:00:19.7]} 49... Rh8 {[%clk
0:00:04.1]} 50. Bd5 {[%clk 0:00:18.3]} 50... Rd8 {[%clk 0:00:02.9]} 51. Re6+
{[%clk 0:00:18.6]} 51... Kg7 {[%clk 0:00:03.3]} 52. Rd6 {[%clk 0:00:17.9]} 52...
Kf8 {[%clk 0:00:02.6]} 53. Be6 {[%clk 0:00:16.1]} 53... Ke7 {[%clk 0:00:02.8]}
54. Rb6 {[%clk 0:00:16.6]} 1-0

[Event "*** Titled Tuesday Blitz"]
[Site "Chess.com"]
[Date "2020.04.14"]
[Round "1"]
[White "Alexander_Zubov"]
[Black "Natalya_Buksa"]
[Result "1-0"]
[WhiteElo "2870"]
[BlackElo "2468"]
[TimeControl "180+1"]
[EndTime "10:08:23 PDT"]
[Termination "Alexander_Zubov won by resignation"]

1. d4 {[%clk 0:02:58.8]} 1... d5 {[%clk 0:02:59.8]} 2. c4 {[%clk 0:02:58.2]}
2... e6 {[%clk 0:03:00.3]} 3. Nf3 {[%clk 0:02:57.5]} 3... Nf6 {[%clk 0:03:00.7]}
4. g3 {[%clk 0:02:54.7]} 4... Be7 {[%clk 0:03:01.1]} 5. Bg2 {[%clk 0:02:54.1]}
5... O-O {[%clk 0:03:01.6]} 6. O-O {[%clk 0:02:53.7]} 6... dxc4 {[%clk
0:03:01.6]} 7. Qa4 {[%clk 0:02:52.1]} 7... c6 {[%clk 0:03:00.9]} 8. Qxc4 {[%clk
0:02:51.4]} 8... b5 {[%clk 0:03:01.3]} 9. Qb3 {[%clk 0:02:51.2]} 9... Bb7 {[%clk
0:02:32.9]} 10. Rd1 {[%clk 0:02:49.7]} 10... Nbd7 {[%clk 0:02:27.7]} 11. Nc3
{[%clk 0:02:40.9]} 11... Qb6 {[%clk 0:02:23.2]} 12. Bf4 {[%clk 0:02:13]} 12...
a6 {[%clk 0:02:07]} 13. a4 {[%clk 0:01:58.1]} 13... bxa4 {[%clk 0:01:44.6]} 14.
Qc2 {[%clk 0:01:20.6]} 14... Qb3 {[%clk 0:01:41]} 15. Qc1 {[%clk 0:01:15.3]}
15... c5 {[%clk 0:01:16.5]} 16. Nd2 {[%clk 0:01:12.3]} 16... Qb6 {[%clk
0:01:01.4]} 17. Nxa4 {[%clk 0:01:11.8]} 17... Qa7 {[%clk 0:01:01.8]} 18. Bxb7
{[%clk 0:01:11.6]} 18... Qxb7 {[%clk 0:01:02.2]} 19. Nxc5 {[%clk 0:00:48]} 19...
Nxc5 {[%clk 0:01:01.1]} 20. dxc5 {[%clk 0:00:48.9]} 20... Rfc8 {[%clk 0:01:00]}
21. Ra5 {[%clk 0:00:38.9]} 21... Nd5 {[%clk 0:00:59.7]} 22. Be5 {[%clk
0:00:34.2]} 22... Qb4 {[%clk 0:00:51.3]} 23. Qa1 {[%clk 0:00:32.2]} 23... Rc6
{[%clk 0:00:38.3]} 24. Bc3 {[%clk 0:00:22.9]} 24... Qb7 {[%clk 0:00:36.9]} 25.
Ne4 {[%clk 0:00:20.5]} 25... h6 {[%clk 0:00:28.4]} 26. b4 {[%clk 0:00:16.4]}
26... Nxc3 {[%clk 0:00:27.1]} 27. Qxc3 {[%clk 0:00:15.6]} 27... Rac8 {[%clk
0:00:24.3]} 28. Qc4 {[%clk 0:00:14.6]} 28... Bd8 {[%clk 0:00:19.5]} 29. Ra4
{[%clk 0:00:13.1]} 29... Bc7 {[%clk 0:00:16.9]} 30. Rda1 {[%clk 0:00:10.2]}
30... Be5 {[%clk 0:00:08.5]} 31. R1a2 {[%clk 0:00:08.6]} 31... Qd7 {[%clk
0:00:09]} 32. Rxa6 {[%clk 0:00:07.4]} 32... Rxa6 {[%clk 0:00:09.1]} 33. Rxa6
{[%clk 0:00:07.7]} 33... Qd1+ {[%clk 0:00:09.6]} 34. Kg2 {[%clk 0:00:07.9]}
34... Rd8 {[%clk 0:00:10]} 35. c6 {[%clk 0:00:08]} 35... Rd4 {[%clk 0:00:10.5]}
36. Ra8+ {[%clk 0:00:08]} 36... Kh7 {[%clk 0:00:10]} 37. Nc3 {[%clk 0:00:07.7]}
37... Rxc4 {[%clk 0:00:09.7]} 38. Nxd1 {[%clk 0:00:07]} 38... Rxc6 {[%clk
0:00:10.4]} 39. Ra5 {[%clk 0:00:06.9]} 39... Bd6 {[%clk 0:00:09.1]} 40. b5
{[%clk 0:00:06.8]} 40... Rb6 {[%clk 0:00:09]} 41. Ra6 {[%clk 0:00:06.8]} 41...
Bc5 {[%clk 0:00:08.3]} 42. Rxb6 {[%clk 0:00:06.8]} 42... Bxb6 {[%clk 0:00:08.6]}
43. Nc3 {[%clk 0:00:07.7]} 43... f5 {[%clk 0:00:07.6]} 44. Na4 {[%clk
0:00:08.6]} 44... Bc7 {[%clk 0:00:07.5]} 45. b6 {[%clk 0:00:09.5]} 45... Bd6
{[%clk 0:00:07.8]} 46. b7 {[%clk 0:00:08.6]} 46... Kg6 {[%clk 0:00:08.2]} 47.
Nc5 {[%clk 0:00:09.5]} 47... Kf7 {[%clk 0:00:07.7]} 48. Na6 {[%clk 0:00:09]}
48... Ke7 {[%clk 0:00:08.3]} 49. b8=Q {[%clk 0:00:09.2]} 49... Bxb8 {[%clk
0:00:09.2]} 50. Nxb8 {[%clk 0:00:10.1]} 50... Kd6 {[%clk 0:00:09.7]} 51. Kf3
{[%clk 0:00:10.9]} 51... e5 {[%clk 0:00:09.2]} 52. e4 {[%clk 0:00:10.4]} 52...
g6 {[%clk 0:00:09.5]} 53. g4 {[%clk 0:00:09.8]} 53... f4 {[%clk 0:00:08.9]} 54.
g5 {[%clk 0:00:10]} 54... hxg5 {[%clk 0:00:08.2]} 55. Kg4 {[%clk 0:00:09.8]}
55... Kc5 {[%clk 0:00:09.1]} 56. Nd7+ {[%clk 0:00:09]} 56... Kd4 {[%clk
0:00:10]} 57. Nf6 {[%clk 0:00:09.2]} 57... Kd3 {[%clk 0:00:09.7]} 58. Kxg5
{[%clk 0:00:09.2]} 58... Ke2 {[%clk 0:00:10.6]} 59. Ng4 {[%clk 0:00:08.9]} 59...
Kf3 {[%clk 0:00:10.8]} 60. Nxe5+ {[%clk 0:00:09]} 60... Kxe4 {[%clk 0:00:11.2]}
61. Nxg6 {[%clk 0:00:09]} 61... Kf3 {[%clk 0:00:11.6]} 62. Nxf4 {[%clk
0:00:08.3]} 62... Kxf2 {[%clk 0:00:12.5]} 63. h4 {[%clk 0:00:09.2]} 1-0